bitfinex-derivatives/quotes_SOLF0:USTF0_20250505
["timestamp","ask_amount","ask_price","bid_price","bid_amount"]
[1746417612142,24.02,145.04,144.94,29.26397346]
[1746417612347,24.27086905,145.06,144.97,5.24397346]
[1746417612643,6.894,145.05,144.98,4.0447]
[1746417612844,6.894,145.05,144.99,24.02]
[1746417613142,24.27086905,145.06,144.99,24.02]
[1746417613333,6.8929,145.07,144.99,24.02]
[1746417613643,4.1453,145.09,144.99,24.02]
[1746417614039,6.8933,145.06,145.03,6.8944]
[1746417614546,6.8933,145.06,145.02,6.895]
[1746417614742,6.8933,145.06,144.99,24.02]
[1746417615046,6.893,145.07,144.99,24.02]
[1746417615245,6.893,145.07,145.03,6.8944]
[1746417616045,6.8924,145.08,145.0,5.24397346]
[1746417616750,6.8924,145.08,145.04,6.894]
[1746417617248,6.8929,145.07,145.04,6.894]
[1746417617447,6.8929,145.07,145.03,30.8946]
[1746417618952,6.8935,145.06,145.03,24.0]
[1746417619251,7.24967346,145.09,145.03,24.0]
[1746417619940,2.0057,145.09,145.03,24.0]
[1746417620143,6.8926,145.08,145.03,30.8944]
[1746417620343,2.0057,145.09,145.03,30.8944]
[1746417620650,2.0057,145.09,145.03,24.0]
[1746417620849,7.24967346,145.09,145.0,24.0]
[1746417621350,4.0942,145.08,145.0,24.0]
[1746417622148,4.0942,145.08,144.98,4.0447]
[1746417622149,6.8955,145.02,144.98,4.0447]
[1746417622457,24.0,145.05,144.97,24.0]
[1746417622753,24.0,145.05,144.96,30.8979]
[1746417622952,24.0,145.05,144.96,24.0]
[1746417624453,6.8958,145.01,144.97,6.8973]
[1746417626655,6.8954,145.02,144.98,6.897]
[1746417629154,6.8954,145.02,144.99,6.8966]
[1746417629458,6.8949,145.03,144.99,6.8966]
[1746417629961,6.8945,145.04,144.96,24.0]
[1746417630161,6.8945,145.04,144.97,5.24397346]
[1746417630859,6.8945,145.04,144.98,2.0675]
[1746417631664,6.8945,145.04,145.01,6.8954]
[1746417631867,30.8939,145.05,145.01,6.8954]
[1746417632058,30.8939,145.05,145.0,24.0]
[1746417632259,24.0,145.07,145.0,24.0]
[1746417632461,6.8936,145.06,145.0,24.0]
[1746417632766,6.8936,145.06,145.02,6.8949]
[1746417633168,6.8938,145.05,145.02,6.8949]
[1746417633866,6.8943,145.04,145.01,6.8956]
[1746417634268,24.0,145.07,145.0,24.0]
[1746417634465,6.8936,145.06,145.03,6.8946]
[1746417635670,30.893,145.07,145.03,6.8946]
[1746417636069,24.0,145.07,145.03,6.8946]
[1746417637170,6.8933,145.06,145.03,6.8946]
[1746417640975,24.0,145.07,145.0,24.0]
[1746417642176,6.8938,145.05,145.01,6.8954]
[1746417642477,24.0,145.07,145.01,6.8954]
[1746417643878,24.0,145.07,145.0,24.0]
[1746417644180,24.0,145.07,144.98,2.0675]
[1746417644383,6.895,145.03,144.99,6.8964]
[1746417644781,6.895,145.03,144.98,2.0675]
[1746417644973,6.895,145.03,144.99,6.8964]
[1746417646379,6.895,145.03,145.0,6.8961]
[1746417648781,6.895,145.03,144.99,6.8965]
[1746417650983,6.8953,145.02,144.99,6.8965]
[1746417652182,6.8953,145.02,144.99,106.8965]
[1746417652584,6.8962,145.0,144.99,100.0]
[1746417659193,6.8958,145.01,144.99,100.0]
[1746417659394,2.041,145.02,144.99,100.0]
[1746417660387,8.9364,145.02,144.99,100.0]
[1746417660994,6.8954,145.02,144.99,100.0]
[1746417667499,6.8954,145.02,144.99,106.8965]
[1746417668699,3.9606,145.06,144.99,100.0]
[1746417668890,24.08,145.05,144.99,100.0]
[1746417669199,30.974,145.05,145.01,6.8954]
[1746417670403,5.24397346,145.08,144.99,100.0]
[1746417670404,24.08,145.08,144.99,129.32397346]
[1746417671004,6.8931,145.07,145.03,6.8944]
[1746417672908,6.8934,145.06,145.03,6.8944]
[1746417679414,24.08,145.08,144.99,124.08]
[1746417680110,6.8941,145.05,145.02,6.8949]
[1746417685418,6.8932,145.07,145.03,6.8944]
[1746417686219,6.8932,145.07,145.04,6.8942]
[1746417686421,6.8932,145.07,144.99,124.08]
[1746417686819,6.8932,145.07,145.03,6.8946]
[1746417687222,6.8933,145.06,145.03,6.8946]
[1746417694023,6.893,145.07,145.03,6.8946]
[1746417694223,24.08,145.08,145.03,6.8946]
[1746417694928,6.8934,145.06,145.03,6.8946]
[1746417699036,6.893,145.07,145.04,6.8939]
[1746417701734,6.893,145.07,145.05,6.8938]
[1746417701941,26.0409,145.11,145.05,6.8938]
[1746417701942,6.8925,145.08,145.05,6.8938]
[1746417702135,24.0,145.11,145.03,24.0]
[1746417702332,6.8923,145.09,145.03,24.0]
[1746417703137,6.8924,145.08,145.05,6.8935]
[1746417703637,6.8921,145.09,145.06,6.8933]
[1746417705741,6.8921,145.09,145.05,6.8936]
[1746417706740,6.8921,145.09,145.06,6.8933]
[1746417709446,6.8916,145.1,145.06,6.8933]
[1746417709644,6.8916,145.1,145.07,6.8928]
[1746417710540,3.9265,145.15,145.07,24.0]
[1746417710746,25.9607,145.15,145.07,24.0]
[1746417711250,6.89,145.13,145.1,6.8912]
[1746417711949,6.8897,145.14,145.1,6.8912]
[1746417712142,29.31166374,145.15,145.09,6.8917]
[1746417712642,6.89,145.13,145.09,6.8917]
[1746417714147,25.9607,145.15,145.07,24.0]
[1746417714850,6.8913,145.11,145.07,30.8927]
[1746417716951,6.8916,145.1,145.07,30.8927]
[1746417718150,25.9607,145.15,145.07,24.0]
[1746417718340,5.23618702,145.14,145.07,24.0]
[1746417718544,5.23618702,145.11,145.04,24.0]
[1746417718839,26.0602,145.1,145.04,24.0]
[1746417719850,28.0563,145.1,145.04,24.0]
[1746417720044,6.8937,145.06,145.02,6.8951]
[1746417720245,28.0563,145.1,145.02,6.8951]
[1746417720444,28.0563,145.1,145.03,6.8945]
[1746417721149,28.0563,145.1,145.02,6.895]
[1746417721653,6.8931,145.07,145.02,6.895]
[1746417721951,28.0563,145.1,145.02,6.895]
[1746417722154,28.0563,145.1,145.03,6.8946]
[1746417722955,6.893,145.07,145.03,6.8946]
[1746417727351,28.0563,145.1,145.03,6.8946]
[1746417727556,6.8934,145.06,145.02,30.975]
[1746417728557,6.8938,145.05,145.02,30.975]
[1746417728856,5.23618702,145.08,144.99,124.08]
[1746417729757,5.23618702,145.08,145.0,6.8958]
[1746417729957,5.23618702,145.08,144.99,124.08]
[1746417730155,28.0563,145.1,145.0,5.23618702]
[1746417730358,6.8922,145.09,145.05,6.8938]
[1746417730751,6.8924,145.08,145.04,6.8939]
[1746417730952,28.0563,145.1,145.03,24.08]
[1746417731356,30.0576,145.1,145.03,24.08]
[1746417731557,6.8936,145.06,145.03,24.08]
[1746417734559,6.893,145.07,145.03,30.9746]
[1746417734747,30.0576,145.1,145.03,24.08]
[1746417734947,26.0602,145.1,145.03,24.08]
[1746417736261,6.8924,145.08,145.05,6.8938]
[1746417736458,6.8924,145.08,145.03,24.08]
[1746417736860,6.8924,145.08,145.04,6.894]
[1746417738263,6.8929,145.07,145.04,6.894]
[1746417739465,6.8925,145.08,145.05,6.8938]
[1746417739866,24.08,145.11,145.03,24.08]
[1746417740063,24.08,145.11,145.04,7.30748702]
[1746417740064,6.8911,145.11,145.04,7.30748702]
[1746417741266,6.8911,145.11,145.07,6.8925]
[1746417741462,6.8911,145.11,145.07,30.9725]
[1746417742372,6.8915,145.1,145.07,30.9725]
[1746417742664,24.08,145.14,145.07,24.08]
[1746417742960,24.08,145.17,145.08,2.1351]
[1746417743362,24.08,145.17,145.09,2.0599]
[1746417744170,6.8893,145.15,145.12,6.8902]
[1746417755184,24.06,145.2,145.13,6.8897]
[1746417755983,24.06,145.2,145.11,24.08]
[1746417756788,1.9631,145.21,145.11,24.08]
[1746417757289,6.8868,145.2,145.13,5.23618702]
[1746417757487,6.8868,145.2,145.14,4.179]
[1746417757682,6.8868,145.2,145.16,6.8882]
[1746417758188,6.8864,145.21,145.15,24.08]
[1746417758489,24.06,145.23,145.15,24.08]
[1746417758689,6.8858,145.22,145.18,6.8872]
[1746417759592,6.8858,145.22,145.19,6.8871]
[1746417761592,6.8858,145.22,145.18,6.8874]
[1746417761793,2.1481,145.25,145.15,24.08]
[1746417761993,5.23618702,145.24,145.15,24.08]
[1746417762295,5.23618702,145.24,145.15,30.9688]
[1746417762486,6.8875,145.19,145.15,30.9688]
[1746417762888,24.08,145.22,145.15,30.9688]
[1746417763288,5.23618702,145.24,145.15,30.9688]
[1746417763588,6.8867,145.2,145.15,30.9688]
[1746417764094,6.8867,145.2,145.16,6.8885]
[1746417764689,6.8872,145.19,145.16,6.8885]
[1746417764898,24.08,145.22,145.15,24.08]
[1746417765790,6.8865,145.21,145.17,6.8878]
[1746417765987,6.8865,145.21,145.15,24.08]
[1746417766995,6.8865,145.21,145.17,6.8877]
[1746417767195,6.8867,145.2,145.15,24.08]
[1746417767699,6.8872,145.19,145.16,6.8884]
[1746417767997,6.8872,145.19,145.15,24.08]
[1746417768196,6.8872,145.19,145.15,30.969]
[1746417769200,6.8877,145.18,145.15,30.969]
[1746417770700,6.8877,145.18,145.15,24.08]
[1746417772699,6.8881,145.17,145.15,24.08]
[1746417772895,24.08,145.22,145.15,24.08]
[1746417773200,6.8884,145.17,145.15,24.08]
[1746417773803,6.8886,145.16,145.15,24.08]
[1746417773997,5.23618702,145.21,145.12,24.08]
[1746417774295,9.29038702,145.21,145.12,24.08]
[1746417774497,6.889,145.16,145.12,30.9704]
[1746417774801,2.1257,145.2,145.12,30.9704]
[1746417775303,2.1257,145.2,145.12,24.08]
[1746417775603,5.23618702,145.18,145.09,24.08]
[1746417775800,6.891,145.11,145.09,24.08]
[1746417777507,6.8914,145.1,145.06,30.9731]
[1746417777704,6.8914,145.1,145.06,24.08]
[1746417778203,6.8911,145.11,145.07,6.8928]
[1746417779005,6.8915,145.1,145.07,6.8928]
[1746417779605,6.8911,145.11,145.07,6.8928]
[1746417782506,6.8906,145.12,145.08,6.892]
[1746417783410,6.8906,145.12,145.09,6.8919]
[1746417783610,30.9701,145.13,145.09,6.8919]
[1746417784910,6.8906,145.12,145.09,6.8919]
[1746417785513,6.8906,145.12,145.08,6.8922]
[1746417787811,6.8906,145.12,145.09,6.8917]
[1746417789012,24.14,145.16,145.06,24.08]
[1746417789214,24.14,145.16,145.09,5.23618702]
[1746417789406,26.1732,145.19,145.1,26.2139]
[1746417789810,6.889,145.16,145.12,6.8901]
[1746417795414,6.8891,145.15,145.12,6.8901]
[1746417795615,26.1732,145.19,145.11,6.8908]
[1746417796415,6.8894,145.15,145.11,6.8908]
[1746417796715,26.1732,145.19,145.1,26.2139]
[1746417796910,6.8884,145.17,145.1,26.2139]
[1746417797113,26.1732,145.19,145.1,28.319]
[1746417797319,24.14,145.19,145.15,6.8888]
[1746417797506,6.8873,145.19,145.15,6.8888]
[1746417798216,6.8876,145.18,145.15,6.8888]
[1746417798910,6.8872,145.19,145.15,6.8888]
[1746417799221,4.0542,145.21,145.15,6.8888]
[1746417800215,6.8876,145.18,145.15,6.8888]
[1746417803212,6.8873,145.19,145.15,6.8888]
[1746417804022,6.8869,145.2,145.16,6.8884]
[1746417804219,24.12,145.22,145.14,24.12]
[1746417804820,6.887,145.2,145.16,6.8881]
[1746417805321,6.887,145.2,145.17,6.8881]
[1746417805516,6.887,145.2,145.14,24.12]
[1746417806121,6.887,145.2,145.16,6.8884]
[1746417806920,6.8873,145.19,145.16,6.8884]
[1746417807122,24.12,145.22,145.15,6.8889]
[1746417807721,24.12,145.22,145.14,31.0093]
[1746417808124,6.888,145.18,145.14,31.0093]
[1746417808423,6.888,145.18,145.15,6.8889]
[1746417808622,24.12,145.22,145.14,24.12]
[1746417809012,24.12,145.22,145.17,6.8877]
[1746417809218,6.8865,145.21,145.15,2.1219]
[1746417809517,6.8865,145.21,145.15,4.258]
[1746417810724,6.8869,145.2,145.17,6.8878]
[1746417811118,2.1438,145.24,145.15,4.258]
[1746417811521,6.8862,145.21,145.18,6.8873]
[1746417811722,6.8862,145.21,145.18,31.0073]
[1746417816426,6.8859,145.22,145.18,31.0073]
[1746417817123,6.8859,145.22,145.19,6.8871]
[1746417820533,6.8853,145.23,145.2,6.8866]
[1746417820834,6.8853,145.23,145.18,24.12]
[1746417821235,6.8853,145.23,145.19,6.8869]
[1746417821436,6.8858,145.22,145.19,6.8869]
[1746417822137,6.8854,145.23,145.2,6.8865]
[1746417823736,6.8854,145.23,145.19,6.8869]
[1746417825538,6.8858,145.22,145.19,6.8869]
[1746417827739,6.8857,145.23,145.2,6.8865]
[1746417828541,6.8858,145.22,145.19,6.8869]
[1746417843762,6.8854,145.23,145.19,6.8869]
[1746417844860,24.12,145.25,145.21,6.8862]
[1746417845051,4.1325,145.29,145.22,3.34632532]
[1746417845255,24.08,145.28,145.22,3.34632532]
[1746417845562,6.8841,145.26,145.22,10.23172532]
[1746417847764,6.8841,145.26,145.22,6.8854]
[1746417848464,6.8844,145.25,145.22,6.8854]
[1746417848766,6.8844,145.25,145.21,6.886]
[1746417852564,6.8844,145.25,145.22,6.8857]
[1746417855969,6.884,145.26,145.23,6.885]
[1746417858368,6.884,145.26,145.22,6.8855]
[1746417859270,6.8844,145.25,145.22,6.8855]
[1746417859867,24.08,145.28,145.22,6.8855]
[1746417860273,6.8843,145.26,145.22,6.8855]
[1746417861168,6.8844,145.25,145.22,6.8855]
[1746417867169,24.08,145.28,145.19,5.22589834]
[1746417867379,6.8836,145.27,145.22,5.22589834]
[1746417867677,6.8836,145.27,145.23,23.96]
[1746417867972,6.8836,145.27,145.24,6.8845]
[1746417869678,6.8836,145.27,145.24,10.22819673]
[1746417870375,6.8839,145.26,145.24,3.34369673]
[1746417870777,2.0827,145.29,145.24,3.34369673]
[1746417870968,6.8841,145.26,145.23,23.96]
[1746417872279,6.8841,145.26,145.23,30.8452]
[1746417872776,3.34369673,145.28,145.24,6.8847]
[1746417872974,2.0827,145.29,145.24,10.22839673]
[1746417873277,6.883,145.28,145.24,10.22839673]
[1746417875680,6.883,145.28,145.24,6.8847]
[1746417876877,6.8826,145.29,145.26,6.8838]
[1746417877273,23.96,145.31,145.23,23.96]
[1746417877976,6.8824,145.29,145.25,6.8841]
[1746417878984,6.8829,145.28,145.25,6.8841]
[1746417884285,6.8837,145.27,145.24,6.8847]
[1746417884785,6.8837,145.27,145.23,23.96]
[1746417884984,6.883,145.28,145.25,6.8842]
[1746417885585,6.8834,145.27,145.24,6.8846]
[1746417885786,6.8834,145.27,145.23,23.96]
[1746417886482,6.8834,145.27,145.24,6.8843]
[1746417888789,6.883,145.28,145.25,6.8841]
[1746417889090,23.96,145.31,145.23,23.96]
[1746417889091,358.0,145.38,145.27,5.21990463]
[1746417889287,29.15990463,145.4,145.28,30.8227]
[1746417889288,6.8809,145.33,145.28,30.8227]
[1746417889484,26.0062,145.36,145.28,30.8227]
[1746417889981,26.0062,145.36,145.29,6.8824]
[1746417889982,6.8808,145.33,145.29,6.8824]
[1746417890888,6.881,145.32,145.28,30.8227]
[1746417891188,26.0062,145.36,145.28,23.94]
[1746417891488,6.8823,145.3,145.25,23.94]
[1746417891787,6.8823,145.3,145.26,6.8837]
[1746417892487,6.8823,145.3,145.27,6.8833]
[1746417893994,26.0062,145.36,145.26,6.8837]
[1746417894181,5.22023202,145.34,145.26,6.8837]
[1746417895192,5.22023202,145.34,145.25,30.8241]
[1746417895390,5.22023202,145.34,145.25,23.94]
[1746417895791,5.22023202,145.34,145.26,6.8838]
[1746417896393,6.8824,145.3,145.26,6.8838]
[1746417896587,5.22023202,145.34,145.26,6.8838]
[1746417896787,5.22023202,145.34,145.25,30.8241]
[1746417896992,6.8832,145.28,145.25,23.94]
[1746417898787,6.8834,145.27,145.24,6.8845]
[1746417899495,6.8831,145.28,145.24,6.8845]
[1746417900594,5.28758325,145.3,145.24,6.8845]
[1746417900994,5.28758325,145.3,145.23,10.22928325]
[1746417901194,9.48718325,145.3,145.23,10.22928325]
[1746417901493,3.34418325,145.28,145.23,10.22928325]
[1746417902200,23.94,145.31,145.25,10.22798325]
[1746417902498,27.28418325,145.31,145.25,10.22798325]
[1746417902795,6.8826,145.29,145.25,10.22798325]
[1746417903096,6.8826,145.29,145.26,6.8838]
[1746417903896,6.882,145.3,145.27,6.8832]
[1746417904096,23.94,145.31,145.27,10.22738325]
[1746417904598,30.8216,145.31,145.28,6.8828]
[1746417904894,6.8816,145.31,145.28,6.8828]
[1746417907998,6.8811,145.32,145.28,6.8828]
[1746417909705,6.8816,145.31,145.28,6.8828]
[1746417910810,6.8816,145.31,145.27,6.8832]
[1746417911201,6.8819,145.3,145.27,6.8832]
[1746417912206,6.8816,145.31,145.27,6.8832]
[1746417912508,6.8816,145.31,145.28,6.8827]
[1746417912808,23.94,145.34,145.28,6.8827]
[1746417913313,6.8813,145.32,145.28,6.8827]
[1746417916714,6.8815,145.31,145.27,6.8831]
[1746417917606,6.8811,145.32,145.28,6.8826]
[1746417917811,6.8811,145.32,145.26,23.94]
[1746417918008,23.94,145.34,145.26,23.94]
[1746417918309,30.8201,145.34,145.3,6.8816]
[1746417920616,23.94,145.34,145.28,6.8827]
[1746417920812,23.94,145.34,145.26,23.94]
[1746417921115,6.8806,145.33,145.26,23.94]
[1746417921516,23.94,145.34,145.26,23.94]
[1746417921814,6.88,145.35,145.27,5.22202299]
[1746417922014,569.18,145.37,145.27,5.22202299]
[1746417922318,6.8795,145.36,145.32,6.8807]
[1746417922614,24.06,145.37,145.32,6.8807]
[1746417923418,6.8796,145.35,145.31,30.9413]
[1746417923624,24.06,145.37,145.31,24.06]
[1746417923920,6.8793,145.36,145.32,6.8807]
[1746417924422,24.06,145.37,145.31,24.06]
[1746417924622,6.8792,145.36,145.32,6.8806]
[1746417925519,6.8796,145.35,145.32,6.8806]
[1746417925719,24.06,145.37,145.32,6.8806]
[1746417926019,6.8795,145.36,145.32,6.8806]
[1746417926418,24.06,145.37,145.32,6.8806]
[1746417926720,6.8793,145.36,145.32,6.8806]
[1746417927117,24.06,145.37,145.32,6.8806]
[1746417927913,6.8792,145.36,145.33,6.8804]
[1746417928919,6.8788,145.37,145.33,6.8804]
[1746417929720,6.8791,145.36,145.33,6.8804]
[1746417931017,6.8788,145.37,145.33,6.8804]
[1746417931721,6.8783,145.38,145.34,3.33936797]
[1746417932423,30.9378,145.39,145.35,6.8792]
[1746417932617,6.8778,145.39,145.35,6.8792]
[1746417932818,5.28966797,145.4,145.35,6.8792]
[1746417933116,5.28966797,145.4,145.33,6.8801]
[1746417933623,6.8789,145.37,145.33,6.8801]
[1746417935418,6.8789,145.37,145.34,6.8799]
[1746417935624,6.8796,145.35,145.31,24.06]
[1746417936019,3.33936797,145.36,145.31,24.06]
[1746417936424,6.8805,145.34,145.31,24.06]
[1746417936619,3.33936797,145.36,145.31,24.06]
[1746417937723,6.8809,145.33,145.31,24.06]
[1746417937919,6.8809,145.33,145.29,6.8822]
[1746417939130,6.8809,145.33,145.28,24.1]
[1746417939131,24.06,145.38,145.28,24.1]
[1746417939825,24.06,145.38,145.29,6.8823]
[1746417940228,24.06,145.38,145.28,24.1]
[1746417940428,6.8803,145.34,145.3,6.8819]
[1746417940830,6.8803,145.34,145.28,24.1]
[1746417941027,6.8798,145.35,145.31,6.881]
[1746417941219,24.06,145.38,145.29,5.22105004]
[1746417941726,30.9383,145.38,145.3,2.0833]
[1746417942126,30.9383,145.38,145.31,4.1812]
[1746417942327,24.06,145.38,145.32,24.1]
[1746417942832,24.06,145.38,145.32,30.9806]
[1746417943029,24.06,145.38,145.32,24.1]
[1746417943331,6.8798,145.35,145.32,24.1]
[1746417944431,6.8801,145.34,145.32,24.1]
[1746417947027,6.8805,145.33,145.32,24.1]
[1746417947227,6.8805,145.33,145.29,36.20325004]
[1746417947731,6.8805,145.33,145.3,6.8818]
[1746417949530,6.8802,145.34,145.3,6.8818]
[1746417953242,6.8807,145.33,145.3,6.8818]
[1746417955544,6.8809,145.33,145.3,6.8818]
[1746417955946,6.8809,145.33,145.31,6.8814]
[1746417956445,6.8802,145.34,145.31,6.8814]
[1746417962057,6.8805,145.33,145.3,10.2224884]
[1746417962257,6.8805,145.33,145.3,6.8817]
[1746417962960,6.8805,145.33,145.31,6.8814]
[1746417963159,6.8802,145.34,145.31,6.8814]
[1746417964363,6.8797,145.35,145.32,6.881]
[1746417964754,24.06,145.38,145.31,3.3407884]
[1746417965253,6.8793,145.36,145.33,6.8802]
[1746417965664,6.8793,145.36,145.31,3.3407884]
[1746417965963,6.8793,145.36,145.32,6.8808]
[1746417966865,6.8797,145.35,145.32,6.8808]
[1746417967565,6.8793,145.36,145.32,6.8808]
[1746417970669,6.8788,145.37,145.33,6.8805]
[1746417972571,6.8792,145.36,145.33,6.8805]
[1746417972768,6.8792,145.36,145.32,6.8808]
[1746417975177,6.8792,145.36,145.33,6.8805]
[1746417976878,6.8792,145.36,145.32,6.8808]
[1746417977781,27.4007884,145.38,145.33,6.8804]
[1746417978984,6.8793,145.36,145.32,6.8808]
[1746417982689,24.06,145.38,145.31,3.3407884]
[1746417982888,3.3407884,145.39,145.33,3.3407884]
[1746417983184,10.2186884,145.39,145.35,6.8792]
[1746417984190,3.3407884,145.39,145.36,6.879]
[1746417984385,8.8276,145.4,145.36,6.879]
[1746417984785,6.8777,145.39,145.36,6.879]
[1746417986184,8.8277,145.4,145.36,6.879]
[1746417986390,6.8774,145.4,145.37,6.8786]
[1746417986591,6.8774,145.4,145.35,3.3407884]
[1746417987182,569.12,145.44,145.37,3.3407884]
[1746417987389,3.3407884,145.43,145.37,3.3407884]
[1746417987685,6.8765,145.42,145.38,6.8779]
[1746417987890,3.3407884,145.43,145.37,3.3407884]
[1746417988193,6.8772,145.41,145.37,10.2190884]
[1746417988590,6.8772,145.41,145.37,3.3407884]
[1746417989190,6.8764,145.42,145.37,3.3407884]
[1746417989493,6.8764,145.42,145.37,10.2192884]
[1746417990992,6.8768,145.41,145.37,10.2192884]
[1746417991290,6.8768,145.41,145.38,6.8781]
[1746417991490,6.8768,145.41,145.37,3.3407884]
[1746417991892,6.8768,145.41,145.37,10.2190884]
[1746417993094,6.8772,145.4,145.37,10.2190884]
[1746417993592,27.3807884,145.44,145.38,6.878]
[1746417993892,27.3807884,145.44,145.37,3.3407884]
[1746417994101,27.3807884,145.44,145.37,10.2190884]
[1746417994286,6.8768,145.41,145.37,10.2190884]
[1746417995097,6.8768,145.41,145.38,6.878]
[1746417996397,6.8768,145.41,145.37,10.2191884]
[1746417999605,6.8768,145.41,145.38,6.8781]
[1746418001705,6.8768,145.41,145.37,10.2191884]
[1746418002003,3.3407884,145.42,145.36,27.3807884]
[1746418002304,3.3407884,145.38,145.33,6.8803]
[1746418002501,6.8789,145.37,145.33,6.8803]
[1746418002806,3.3407884,145.38,145.32,30.8608]
[1746418003004,6.8793,145.36,145.32,30.8608]
[1746418003506,6.8805,145.33,145.28,4.0625]
[1746418003702,3.3407884,145.32,145.28,26.087]
[1746418003903,3.3407884,145.32,145.28,23.98]
[1746418004308,10.2218884,145.32,145.28,23.98]
[1746418004708,3.3407884,145.32,145.28,23.98]
[1746418004909,10.2210884,145.34,145.29,6.8821]
[1746418005106,3.3407884,145.34,145.28,23.98]
[1746418005401,3.3407884,145.32,145.28,23.98]
[1746418005608,6.8815,145.31,145.25,572.2207884]
[1746418005802,6.8815,145.31,145.25,568.88]
[1746418006408,6.8815,145.31,145.27,6.8833]
[1746418006808,6.8815,145.31,145.26,6.8836]
[1746418007107,6.8823,145.3,145.26,6.8836]
[1746418007408,7.24096713,145.34,145.27,6.8833]
[1746418007409,6.8816,145.31,145.27,6.8833]
[1746418008408,6.882,145.3,145.26,6.8837]
[1746418009009,7.24096713,145.34,145.25,30.8641]
[1746418010213,6.8823,145.3,145.25,30.8641]
[1746418010710,6.8816,145.31,145.25,23.98]
[1746418011210,6.8816,145.31,145.26,6.8835]
[1746418011911,6.8819,145.3,145.26,6.8835]
[1746418012510,6.8815,145.31,145.27,6.8833]
[1746418012710,7.24096713,145.34,145.25,23.98]
[1746418013209,6.8814,145.32,145.28,6.8826]
[1746418013916,6.8815,145.31,145.27,6.8832]
[1746418014219,7.24096713,145.34,145.25,23.98]
[1746418014517,5.22406713,145.31,145.2,4.0853]
[1746418014816,23.98,145.3,145.21,23.98]
[1746418015011,6.8837,145.27,145.22,6.8854]
[1746418015212,23.98,145.3,145.21,23.98]
[1746418015513,2.0266,145.29,145.21,23.98]
[1746418015714,4.1786,145.29,145.21,30.8658]
[1746418015919,4.1786,145.29,145.21,23.98]
[1746418016216,6.8846,145.25,145.21,23.98]
[1746418016716,4.1786,145.29,145.21,23.98]
[1746418016918,6.8835,145.27,145.22,6.8852]
[1746418017219,4.1786,145.29,145.22,6.8852]
[1746418017421,4.1786,145.29,145.21,23.98]
[1746418017716,6.8836,145.27,145.23,6.8851]
[1746418018717,4.1786,145.29,145.21,23.98]
[1746418018923,5.22406713,145.28,145.21,23.98]
[1746418019216,6.8851,145.24,145.2,6.8865]
[1746418020221,6.8852,145.23,145.19,6.8869]
[1746418020517,23.98,145.26,145.18,23.98]
[1746418020817,6.8856,145.23,145.19,6.8869]
[1746418023619,6.886,145.22,145.18,23.98]
[1746418023815,5.22406713,145.25,145.18,23.98]
[1746418024023,5.22406713,145.25,145.15,24.0]
[1746418024711,23.98,145.26,145.15,24.0]
[1746418024914,23.98,145.26,145.17,5.22406713]
[1746418025222,6.8843,145.25,145.21,6.8859]
[1746418026223,6.8848,145.24,145.21,6.8859]
[1746418026719,23.98,145.26,145.2,24.0]
[1746418027123,23.98,145.26,145.2,30.8866]